bitfinex/quotes_BTCUSD_20250408
["timestamp","ask_amount","ask_price","bid_price","bid_amount"]
[1744074791344,0.20153352,79229.0,79228.0,0.0011679]
[1744074791543,0.20153352,79229.0,79228.0,0.0001679]
[1744074792322,0.20153352,79229.0,79228.0,0.2652249]
[1744074792323,0.03499252,79229.0,79228.0,0.2652249]
[1744074793145,0.03499252,79229.0,79228.0,0.3622249]
[1744074795658,0.03499252,79229.0,79228.0,0.4916136]
[1744074800840,0.15384,79249.0,79248.0,0.012618]
[1744074800974,0.34,79259.0,79258.0,0.012617]
[1744074801175,0.15384,79259.0,79258.0,0.264957]
[1744074801408,0.01262976,79270.0,79264.0,0.264935]
[1744074801605,0.49384,79270.0,79269.0,0.26492]
[1744074801808,0.15384,79270.0,79269.0,0.26492]
[1744074802340,0.15384,79270.0,79269.0,0.3943087]
[1744074802539,0.000336,79273.0,79272.0,0.264909]
[1744074803304,0.000336,79273.0,79272.0,0.3942977]
[1744074803499,0.000336,79273.0,79272.0,0.4423977]
[1744074806595,0.000336,79273.0,79272.0,0.1774887]
[1744074806811,0.000336,79273.0,79272.0,0.0481]
[1744074806998,0.000336,79273.0,79272.0,0.060714]
[1744074807405,0.000336,79273.0,79272.0,0.313009]
[1744074807580,0.000336,79273.0,79272.0,0.3783265]
[1744074807891,0.000336,79273.0,79272.0,0.4423977]
[1744074808091,0.000336,79273.0,79272.0,0.4881977]
[1744074809928,0.000336,79273.0,79272.0,0.2232887]
[1744074810163,0.000336,79273.0,79272.0,0.4755837]
[1744074810388,0.000336,79273.0,79272.0,0.4881977]
[1744074811653,0.000336,79273.0,79272.0,0.2359027]
[1744074814060,0.000336,79273.0,79272.0,0.2232887]
[1744074814394,0.000336,79273.0,79269.0,0.012615]
[1744074814553,0.000336,79273.0,79270.0,0.1293887]
[1744074814758,0.000336,79273.0,79272.0,0.012614]
[1744074815182,0.252299,79271.0,79264.0,0.4625]
[1744074815385,0.252299,79271.0,79265.0,0.3817067]
[1744074815556,0.000336,79273.0,79268.0,0.012615]
[1744074815771,0.000336,79273.0,79272.0,0.012614]
[1744074816356,0.000336,79273.0,79272.0,0.1420027]
[1744074818393,0.000336,79273.0,79272.0,0.1293887]
[1744074818752,0.000336,79273.0,79255.0,0.0488]
[1744074818753,0.012616,79260.0,79255.0,0.0488]
[1744074818928,0.166376,79263.0,79257.0,0.264957]
[1744074819146,0.166376,79263.0,79252.0,0.4522541]
[1744074819147,0.012616,79259.0,79252.0,0.679376]
[1744074819347,0.012617,79255.0,79252.0,0.4144]
[1744074819549,0.15376,79255.0,79252.0,0.4144]
[1744074819749,0.15376,79255.0,79252.0,0.427017]
[1744074820329,0.15376,79255.0,79254.0,0.012617]
[1744074820533,0.15376,79255.0,79254.0,0.1420057]
[1744074821561,0.000336,79273.0,79267.0,0.012615]
[1744074821771,0.15376,79266.0,79263.0,0.012616]
[1744074822050,0.15376,79266.0,79265.0,0.012615]
[1744074822252,0.000336,79273.0,79272.0,0.012614]
[1744074822489,0.000336,79273.0,79272.0,0.264909]
[1744074823292,0.252288,79275.0,79268.0,0.012615]
[1744074823494,0.252293,79273.0,79269.0,0.1293887]
[1744074823689,0.012614,79274.0,79269.0,0.1293887]
[1744074823992,0.012615,79267.0,79260.0,0.012616]
[1744074824199,0.013614,79273.0,79265.0,0.012615]
[1744074824444,0.012614,79272.0,79265.0,0.012615]
[1744074825178,0.252302,79270.0,79265.0,0.252318]
[1744074825351,0.012615,79269.0,79260.0,0.252334]
[1744074825657,0.012615,79267.0,79262.0,0.252327]
[1744074825952,0.012615,79269.0,79262.0,0.264943]
[1744074826094,0.2523,79271.0,79265.0,0.252317]
[1744074826295,0.001,79274.0,79273.0,0.012614]
[1744074826498,0.001,79274.0,79271.0,0.252296]
[1744074826741,0.001,79274.0,79270.0,0.012615]
[1744074826897,0.001,79274.0,79268.0,0.26492]
[1744074827097,0.012614,79274.0,79268.0,0.26492]
[1744074827346,0.166374,79276.0,79271.0,0.012614]
[1744074827550,0.15376,79276.0,79273.0,0.012614]
[1744074827728,0.418657,79276.0,79271.0,0.012614]
[1744074827928,0.012614,79275.0,79270.0,0.252299]
[1744074828353,0.001,79274.0,79270.0,0.264914]
[1744074828566,0.001,79274.0,79272.0,0.252295]
[1744074828712,0.002,79289.0,79273.0,0.2261887]
[1744074828904,0.001,79276.0,79275.0,0.2649]
[1744074829189,0.001,79276.0,79275.0,0.3942887]
[1744074829955,0.001,79276.0,79275.0,0.8086887]
[1744074830367,0.001,79276.0,79275.0,0.81813122]
[1744074830955,0.002,79289.0,79275.0,0.81813122]
[1744074830956,0.002,79289.0,79288.0,0.264856]
[1744074831490,0.002,79289.0,79286.0,0.252248]
[1744074831751,0.012612,79285.0,79279.0,0.012613]
[1744074831923,0.012612,79285.0,79275.0,0.006]
[1744074831924,0.012613,79281.0,79275.0,0.006]
[1744074832151,0.15368,79284.0,79279.0,0.012613]
[1744074832265,0.15368,79284.0,79283.0,0.012613]
[1744074832468,0.15368,79284.0,79281.0,0.264877]
[1744074832693,0.16543637,79284.0,79283.0,0.264873]
[1744074832866,0.17804837,79284.0,79277.0,0.264889]
[1744074833512,0.012613,79283.0,79278.0,0.012613]
[1744074833690,0.01175637,79282.0,79278.0,0.012613]
[1744074834263,0.02350355,79281.0,79279.0,0.252273]
[1744074834677,0.01175637,79280.0,79278.0,0.012613]
[1744074834971,0.264908,79273.0,79265.0,0.012615]
[1744074835173,0.264908,79273.0,79266.0,0.012615]
[1744074835375,0.01175637,79272.0,79266.0,0.012615]
[1744074835601,0.02349852,79271.0,79266.0,0.012615]
[1744074835771,0.15368,79270.0,79267.0,0.012615]
[1744074835956,0.15368,79270.0,79269.0,0.26492]
[1744074836555,0.17717805,79270.0,79269.0,0.012615]
[1744074836790,0.18893442,79270.0,79269.0,0.012615]
[1744074837161,0.18893442,79270.0,79269.0,0.26492]
[1744074838100,0.18893442,79270.0,79269.0,0.26592]
[1744074838349,0.18893442,79270.0,79269.0,0.001]
[1744074840908,0.03525442,79270.0,79269.0,0.1430037]
[1744074841905,0.03525442,79270.0,79269.0,0.1420037]
[1744074842320,0.03525442,79270.0,79269.0,0.002]
[1744074843722,0.03525442,79270.0,79266.0,0.264926]
[1744074843922,0.03525442,79270.0,79269.0,0.001]
[1744074844164,0.01175637,79270.0,79269.0,0.001]
[1744074844336,0.01175637,79270.0,79269.0,0.013615]
[1744074844546,0.03526801,79270.0,79269.0,0.013615]
[1744074845260,0.03526801,79270.0,79269.0,0.001]
[1744074846559,0.03526801,79270.0,79269.0,0.013615]
[1744074850730,0.03526801,79270.0,79269.0,0.1430037]
[1744074850934,0.03526801,79270.0,79269.0,0.2356037]
[1744074851584,0.01175637,79270.0,79269.0,0.2356037]
[1744074851791,0.01175637,79270.0,79269.0,0.2346037]
[1744074852218,0.01175637,79270.0,79269.0,0.23712648]
[1744074852394,0.01175637,79270.0,79269.0,0.2346037]
[1744074852876,0.01175637,79270.0,79269.0,0.2386037]
[1744074854521,0.02437137,79270.0,79269.0,0.004]
[1744074854699,0.17805137,79270.0,79269.0,0.004]
[1744074855082,0.19108555,79270.0,79269.0,0.004]
[1744074855521,0.19108555,79270.0,79253.0,0.264973]
[1744074855522,0.012616,79260.0,79253.0,0.264973]
[1744074855719,0.012616,79259.0,79253.0,0.012617]
[1744074855938,0.012618,79250.0,79244.0,0.301283]
[1744074856098,0.25236,79252.0,79245.0,0.012619]
[1744074856299,0.01175637,79251.0,79245.0,0.012619]
[1744074856999,0.01175637,79251.0,79250.0,0.012618]
[1744074858347,0.01175637,79251.0,79250.0,0.016618]
[1744074858760,0.01175637,79251.0,79250.0,0.1460067]
[1744074858934,0.01175637,79251.0,79250.0,0.004]
[1744074859138,0.01175637,79251.0,79248.0,0.012618]
[1744074859342,0.01175637,79251.0,79250.0,0.004]
[1744074859785,0.01175637,79251.0,79250.0,0.016618]
[1744074860121,0.01175637,79251.0,79250.0,0.1460067]
[1744074860277,0.01175637,79251.0,79250.0,0.24673002]
[1744074860471,0.01175637,79251.0,79250.0,0.2442067]
[1744074860673,0.1536,79268.0,79267.0,0.252311]
[1744074860880,0.1536,79268.0,79267.0,0.012615]
[1744074861441,0.1536,79268.0,79265.0,0.012615]
[1744074861676,0.1536,79268.0,79262.0,0.012616]
[1744074862382,0.1536,79268.0,79263.0,0.26494]
[1744074862589,0.1536,79268.0,79267.0,0.264926]
[1744074863131,0.1536,79268.0,79267.0,0.3943147]
[1744074863638,0.1536,79268.0,79267.0,0.4432147]
[1744074863970,0.1556,79268.0,79267.0,0.4432147]
[1744074864399,0.002,79268.0,79267.0,0.4432147]
[1744074864593,0.002,79268.0,79267.0,0.4462147]
[1744074867811,0.405881,79277.0,79271.0,0.252297]
[1744074868149,0.418494,79277.0,79272.0,0.1293887]
[1744074868359,0.166213,79277.0,79272.0,0.1293887]
[1744074868508,0.1536,79277.0,79273.0,0.264906]
[1744074868705,0.012614,79274.0,79272.0,0.1293887]
[1744074868893,0.264906,79273.0,79265.0,0.679331]
[1744074869098,0.264906,79273.0,79267.0,0.252311]
[1744074869324,0.264904,79274.0,79269.0,0.252305]
[1744074869531,0.26492,79269.0,79268.0,0.1293887]
[1744074869720,0.264929,79266.0,79265.0,0.4144]
[1744074872547,0.252308,79268.0,79265.0,0.4144]
[1744074872749,0.264929,79267.0,79265.0,0.45584]
[1744074872945,0.012615,79266.0,79265.0,0.45584]
[1744074873245,0.012615,79266.0,79265.0,0.4144]
[1744074873784,0.27667511,79267.0,79264.0,0.252319]
[1744074873785,0.01174611,79267.0,79264.0,0.252319]
[1744074873985,0.01174611,79266.0,79265.0,0.012615]
[1744074874129,0.01174611,79266.0,79265.0,0.1420037]
[1744074877885,0.01174611,79266.0,79265.0,0.14452661]
[1744074878695,0.01174611,79266.0,79265.0,0.1420037]
[1744074879346,0.01174611,79266.0,79265.0,0.14452659]
[1744074879609,0.01174611,79266.0,79265.0,0.1293887]
[1744074879792,0.01174611,79266.0,79265.0,0.1420037]
[1744074879993,0.01174611,79266.0,79263.0,0.4144]
[1744074879994,0.252321,79265.0,79263.0,0.4094]
[1744074880359,0.26492,79269.0,79263.0,0.4094]
[1744074880762,0.012615,79267.0,79263.0,0.4094]
[1744074880974,0.264926,79267.0,79263.0,0.4094]
[1744074881172,0.012616,79264.0,79263.0,0.4094]
[1744074881973,0.264934,79265.0,79263.0,0.4094]
[1744074882216,0.012614,79271.0,79264.0,0.264937]
[1744074882400,0.264917,79270.0,79264.0,0.012616]
[1744074882755,0.012614,79275.0,79266.0,0.012615]
[1744074882925,0.418495,79277.0,79270.0,0.252299]
[1744074883127,0.252286,79275.0,79270.0,0.264914]
[1744074883328,0.1536,79277.0,79276.0,0.252283]
[1744074883524,0.1536,79277.0,79276.0,0.264897]
[1744074883702,0.1536,79277.0,79275.0,0.012614]
[1744074884058,0.252299,79271.0,79263.0,0.264939]
[1744074884234,0.012614,79271.0,79265.0,0.264933]
[1744074884441,0.012614,79271.0,79266.0,0.1420037]
[1744074884605,0.264909,79272.0,79266.0,0.1420037]
[1744074884800,0.264909,79272.0,79266.0,0.3943147]
[1744074885049,0.1536,79277.0,79266.0,0.3943147]
[1744074885050,0.1536,79277.0,79268.0,0.012615]
[1744074885333,0.012614,79275.0,79268.0,0.252308]
[1744074885536,0.012614,79275.0,79270.0,0.012615]
[1744074885935,0.264903,79275.0,79270.0,0.012615]
[1744074886289,0.264897,79276.0,79271.0,0.012614]
[1744074886827,0.252292,79273.0,79267.0,0.012615]
[1744074887784,0.264906,79273.0,79267.0,0.012615]
[1744074887935,0.264906,79273.0,79266.0,0.264927]
[1744074887936,0.012615,79269.0,79264.0,0.264937]
[1744074888462,0.02352009,79268.0,79266.0,0.252314]
[1744074888696,0.02352009,79268.0,79259.0,0.264951]
[1744074888843,0.02352009,79267.0,79264.0,0.012616]
[1744074889083,0.02352009,79267.0,79266.0,0.252314]
[1744074889231,0.264913,79271.0,79266.0,0.252314]
[1744074889423,0.02353513,79270.0,79266.0,0.252314]
[1744074889886,0.02353513,79269.0,79266.0,0.252314]
[1744074890129,0.02353513,79269.0,79265.0,0.012615]
[1744074890526,0.252311,79267.0,79260.0,0.012616]
[1744074890694,0.03615013,79268.0,79262.0,0.012616]
[1744074890897,0.02353513,79266.0,79262.0,0.012616]
[1744074891101,0.02353513,79266.0,79265.0,0.264933]
[1744074892841,0.03531621,79266.0,79265.0,0.264933]
[1744074897092,0.18883621,79266.0,79265.0,0.264933]
[1744074901380,0.03531621,79266.0,79265.0,0.4897217]
[1744074901589,2.1e-07,79266.0,79265.0,0.4897217]
[1744074901905,2.1e-07,79266.0,79265.0,0.8297217]
[1744074902481,2.1e-07,79266.0,79265.0,1.2391217]
[1744074903031,0.15352,79292.0,79288.0,0.264856]
[1744074903180,0.15352,79292.0,79288.0,0.310356]
[1744074903749,0.002,79289.0,79288.0,0.4896447]
[1744074904520,0.002,79289.0,79285.0,0.012612]
[1744074904654,0.002,79289.0,79288.0,0.012612]
[1744074905206,0.002,79289.0,79288.0,0.264856]
[1744074905753,0.002,79289.0,79288.0,0.3942447]
[1744074907514,0.002,79289.0,79288.0,0.4022447]
[1744074908056,0.002,79289.0,79288.0,0.4547447]
[1744074908275,8e-07,79296.0,79295.0,0.310333]
[1744074908521,8e-07,79296.0,79295.0,0.4397217]
[1744074911193,8e-07,79296.0,79295.0,0.4467217]
[1744074911462,8e-07,79296.0,79295.0,0.4397217]
[1744074911889,8e-07,79296.0,79295.0,0.4437217]
[1744074913119,8e-07,79296.0,79295.0,0.016611]
[1744074914079,8e-07,79296.0,79295.0,0.012611]
[1744074914635,8e-07,79296.0,79295.0,0.1419997]
[1744074914960,8e-07,79296.0,79295.0,0.1429997]
[1744074915420,8e-07,79296.0,79295.0,0.19162165]
[1744074915766,8e-07,79296.0,79295.0,0.19062165]
[1744074916004,8e-07,79296.0,79295.0,0.1880997]
[1744074916228,8e-07,79301.0,79300.0,0.264816]
[1744074916424,8e-07,79305.0,79304.0,0.012609]
[1744074916624,8e-07,79305.0,79304.0,0.55391934]
[1744074916821,8e-07,79305.0,79304.0,0.5513977]
[1744074917759,0.15344,79320.0,79305.0,0.264799]
[1744074917760,8e-07,79307.0,79305.0,0.264799]
[1744074917992,8e-07,79307.0,79306.0,0.1880977]
[1744074919131,8e-07,79307.0,79306.0,0.19061906]
[1744074919329,8e-07,79309.0,79308.0,0.058709]
[1744074919571,8e-07,79309.0,79308.0,0.23911885]
[1744074919775,8e-07,79309.0,79308.0,0.2365977]
[1744074920530,8e-07,79309.0,79308.0,0.23911911]
[1744074920982,8e-07,79309.0,79308.0,0.2365977]
[1744074921593,8e-07,79309.0,79308.0,0.1419977]
[1744074921951,8e-07,79309.0,79308.0,0.008]
[1744074922366,0.0126088,79309.0,79308.0,0.008]
[1744074922574,0.38301133,79309.0,79308.0,0.008]
[1744074922771,0.38301133,79309.0,79273.0,0.4094]
[1744074922772,0.012613,79278.0,79270.0,0.012615]
[1744074922996,0.15332,79277.0,79275.0,0.252286]
[1744074923178,0.252235,79291.0,79283.0,0.264871]
[1744074923379,0.264853,79289.0,79283.0,0.264871]
[1744074923579,0.264853,79289.0,79281.0,0.252266]
[1744074923580,0.264861,79287.0,79281.0,0.252266]
[1744074923790,0.012613,79280.0,79273.0,0.25229]
[1744074923995,0.012613,79280.0,79275.0,0.264899]
[1744074924196,0.012614,79275.0,79269.0,0.012615]
[1744074924395,0.15332,79274.0,79273.0,0.252292]
[1744074924595,0.15332,79274.0,79273.0,0.264906]
[1744074924819,0.15332,79274.0,79273.0,0.3942947]
[1744074926938,0.15332,79274.0,79273.0,0.3962947]
[1744074927856,0.15332,79274.0,79273.0,0.1313887]
[1744074928015,0.165934,79274.0,79273.0,0.002]
[1744074928219,0.15332,79274.0,79273.0,0.014614]
[1744074930190,0.15336,79274.0,79273.0,0.014614]
[1744074931155,0.15336,79274.0,79273.0,0.012614]
[1744074931454,0.15336,79274.0,79273.0,0.014614]
[1744074931641,0.165974,79274.0,79273.0,0.002]
[1744074932675,0.30990355,79274.0,79273.0,0.002]
[1744074932828,0.35550355,79274.0,79273.0,0.002]
[1744074933216,0.35550355,79274.0,79242.0,0.4565]
[1744074933217,0.012618,79249.0,79242.0,0.4565]
[1744074933337,0.165978,79248.0,79242.0,0.252391]
[1744074933535,0.165978,79248.0,79244.0,0.252383]
[1744074933536,0.15336,79248.0,79244.0,0.252383]
[1744074933774,0.15336,79248.0,79244.0,0.265002]
[1744074933979,0.15336,79248.0,79241.0,0.0147869]
[1744074933980,0.012619,79242.0,79241.0,0.0021679]
[1744074934180,0.18055985,79242.0,79241.0,0.0021679]
[1744074934382,0.6974355,79242.0,79241.0,0.0021679]
[1744074934625,0.26262,79238.0,79231.0,0.000168]
[1744074934828,0.25,79229.0,79206.0,0.0001678]
[1744074935026,0.86962785,79219.0,79206.0,0.0001678]
[1744074935142,0.99901655,79219.0,79206.0,0.0001678]
[1744074935496,1.03696787,79219.0,79206.0,0.0001678]
[1744074936773,0.012623,79217.0,79206.0,0.0001678]
[1744074936982,0.6904367,79217.0,79206.0,0.0001678]
[1744074937162,0.53450387,79217.0,79206.0,0.0001678]
[1744074937364,0.515087,79219.0,79206.0,0.0001678]
[1744074937365,0.012625,79207.0,79206.0,0.0001678]
[1744074937593,0.012629,79182.0,79175.0,0.01263]
[1744074937794,0.18060985,79182.0,79172.0,0.01263]
[1744074937998,0.53139132,79182.0,79178.0,0.012629]
[1744074938194,0.53139132,79182.0,79176.0,0.01263]
[1744074938398,0.54736562,79182.0,79177.0,0.252596]
[1744074938621,0.54736562,79182.0,79178.0,0.012629]
[1744074938794,0.81257662,79182.0,79172.0,0.01263]
[1744074939399,0.81257662,79182.0,79172.0,0.265242]
[1744074939599,0.7746253,79182.0,79173.0,0.01263]
[1744074939779,0.3559743,79182.0,79178.0,0.25259]
[1744074940005,0.1694143,79182.0,79179.0,0.252589]
[1744074940210,0.21999462,79182.0,79181.0,0.003]
[1744074940411,0.23453547,79182.0,79181.0,0.003]
[1744074941284,0.36392417,79182.0,79181.0,1e-06]
[1744074941489,0.855241,79173.0,79172.0,0.000168]
[1744074941694,0.755267,79165.0,79141.0,0.4094]
[1744074941866,1.1381357,79165.0,79138.0,0.252721]
[1744074942042,1.19062787,79165.0,79152.0,0.012633]
[1744074942247,0.0145412,79173.0,79167.0,0.012631]
[1744074942447,0.15348,79165.0,79164.0,0.0001679]
[1744074942683,0.15348,79165.0,79164.0,0.2654399]
[1744074942951,0.2939299,79173.0,79170.0,0.265251]
[1744074942952,3.5e-07,79173.0,79170.0,0.265251]
[1744074943124,0.34000035,79185.0,79181.0,0.001]
[1744074943323,0.012629,79182.0,79181.0,0.001]
[1744074943881,0.352629,79182.0,79181.0,0.001]
[1744074944081,0.265233,79176.0,79170.0,0.012631]
[1744074944282,0.01263,79172.0,79165.0,0.265266]
[1744074944639,0.00747719,79175.0,79168.0,0.012631]
[1744074945045,0.00747719,79175.0,79169.0,0.012631]
[1744074945245,0.352629,79182.0,79176.0,0.01263]
[1744074945460,0.265209,79183.0,79176.0,0.01263]
[1744074945662,0.01263,79175.0,79169.0,0.012631]
[1744074945827,0.01263,79176.0,79170.0,0.012631]
[1744074946527,0.019629,79182.0,79175.0,0.01263]
[1744074946728,0.012629,79180.0,79173.0,0.01263]
[1744074946900,0.012629,79178.0,79171.0,0.01263]
[1744074947104,0.005,79176.0,79175.0,0.01263]
[1744074947861,0.005,79176.0,79175.0,0.001]
[1744074948067,0.01263,79174.0,79166.0,0.265261]
[1744074948260,0.01263,79174.0,79169.0,0.012631]
[1744074948439,0.01263,79174.0,79168.0,0.012631]
[1744074948785,0.15356,79181.0,79180.0,0.012629]
[1744074951936,0.15356,79181.0,79180.0,0.014629]
[1744074953194,0.15356,79181.0,79180.0,0.002]
[1744074953195,0.166189,79181.0,79180.0,0.002]
[1744074954240,0.01263,79176.0,79171.0,0.01263]
[1744074954439,0.012629,79179.0,79172.0,0.265244]
[1744074954718,0.15356,79181.0,79179.0,0.012629]
[1744074954879,0.15356,79181.0,79180.0,0.012629]
[1744074955038,0.15356,79181.0,79180.0,0.0681996]
[1744074955251,0.15656,79181.0,79180.0,0.012629]
[1744074955464,0.15356,79181.0,79180.0,0.012629]
[1744074955670,0.15356,79181.0,79177.0,0.252597]
[1744074955895,0.01263,79175.0,79169.0,0.4094]
[1744074956127,0.15356,79181.0,79172.0,0.01263]
[1744074956345,0.15356,79181.0,79180.0,0.012629]
[1744074958085,0.15456,79181.0,79180.0,0.012629]
[1744074958281,0.15456,79181.0,79178.0,0.265224]
[1744074958487,0.15456,79181.0,79179.0,0.012629]
[1744074958827,0.15556,79181.0,79179.0,0.012629]
[1744074959622,0.15556,79181.0,79180.0,0.265218]
[1744074959769,0.15556,79181.0,79180.0,0.012629]
[1744074959970,0.15356,79181.0,79180.0,0.012629]
[1744074960330,0.15456,79181.0,79177.0,0.252598]
[1744074960487,0.15456,79181.0,79177.0,0.012629]
[1744074960683,0.01263,79174.0,79169.0,0.422031]
[1744074960891,0.01263,79176.0,79169.0,0.422031]
[1744074961182,0.252592,79179.0,79174.0,0.01263]
[1744074961386,0.15456,79181.0,79180.0,0.012629]
[1744074961601,0.15556,79181.0,79180.0,0.012629]
[1744074961830,0.15456,79181.0,79180.0,0.012629]
[1744074962229,0.15456,79181.0,79180.0,0.058729]
[1744074963236,0.15456,79181.0,79180.0,0.0461]
[1744074963444,0.15356,79181.0,79180.0,0.058729]
[1744074963849,0.15456,79181.0,79180.0,0.058729]
[1744074965108,0.265251,79170.0,79169.0,0.0461]
[1744074965251,0.012631,79167.0,79155.0,0.298765]
[1744074965450,0.166151,79166.0,79158.0,0.012632]
[1744074965657,0.012631,79165.0,79158.0,0.012632]
[1744074965883,0.166151,79166.0,79158.0,0.012632]
[1744074966080,0.166151,79166.0,79157.0,0.265295]
[1744074966081,0.265267,79165.0,79155.0,0.0461]
[1744074966281,0.265267,79165.0,79151.0,0.254681]
[1744074966497,0.28074848,79165.0,79153.0,0.252673]
[1744074966699,0.28074848,79165.0,79155.0,0.012633]
[1744074966902,0.15352,79166.0,79165.0,0.012631]
[1744074967311,0.15652,79166.0,79165.0,0.012631]
[1744074968054,0.15352,79166.0,79165.0,0.012631]
[1744074968859,0.15352,79166.0,79164.0,0.2528079]
[1744074968860,0.265267,79165.0,79164.0,0.0001679]
[1744074969443,1.266507,79165.0,79164.0,0.0001679]
[1744074970026,1.85083035,79165.0,79164.0,0.0001679]
[1744074970259,0.755311,79152.0,79151.0,0.002]
[1744074970495,1.05280055,79152.0,79151.0,0.002]
[1744074972891,1.06080055,79152.0,79151.0,0.003]
[1744074973631,1.05280055,79152.0,79151.0,0.002]
[1744074974076,1.05980055,79152.0,79151.0,0.003]
[1744074975665,1.13601036,79152.0,79151.0,0.003]
[1744074976082,0.265371,79134.0,79133.0,0.0001682]
[1744074976285,0.15356,79134.0,79133.0,0.0001682]
[1744074976851,0.166196,79134.0,79133.0,0.0001682]
[1744074977391,1.31164555,79134.0,79133.0,0.0001682]
[1744074977584,1.2844687,79134.0,79133.0,0.0021682]
[1744074977789,1.15508,79134.0,79133.0,0.0148042]
[1744074978206,1.557815,79134.0,79133.0,0.0021682]
[1744074978407,1.570451,79134.0,79133.0,0.0021682]
[1744074979236,1.570451,79134.0,79133.0,0.0001682]
[1744074980118,1.30508,79134.0,79133.0,0.0128042]
[1744074980333,1.30508,79134.0,79133.0,0.0001682]
[1744074981019,1.570451,79134.0,79133.0,0.0001682]
[1744074981209,1.571451,79134.0,79133.0,0.0001682]
[1744074981410,1.70085645,79134.0,79133.0,0.0001682]
[1744074981618,2.284786,79134.0,79133.0,0.0001682]
[1744074982246,2.29412527,79134.0,79133.0,0.0001682]
[1744074982447,2.29312527,79134.0,79133.0,0.0001682]
[1744074982653,0.61994285,79125.0,79124.0,0.000168]
[1744074982865,0.61994285,79125.0,79101.0,0.000168]
[1744074982866,0.265479,79102.0,79101.0,0.000168]
[1744074983069,0.252856,79097.0,79091.0,0.313714]
[1744074983368,0.012643,79095.0,79091.0,0.002]
[1744074983711,0.02345522,79095.0,79091.0,0.002]
[1744074983916,0.03516812,79095.0,79091.0,0.002]
[1744074984111,0.03516812,79095.0,79094.0,0.012811]
[1744074984389,0.03516812,79095.0,79094.0,0.000168]
[1744074984585,0.0117129,79095.0,79094.0,0.000168]
[1744074984724,0.0243559,79095.0,79094.0,0.000168]
[1744074985341,0.0776097,79095.0,79094.0,0.000168]
[1744074985547,0.5469984,79095.0,79094.0,0.000168]
[1744074985995,0.31628106,79095.0,79094.0,0.000168]
[1744074986198,0.16272258,79095.0,79094.0,0.000168]
[1744074986547,0.16872258,79095.0,79094.0,0.001168]
[1744074987184,0.45967958,79095.0,79094.0,0.001168]
[1744074987977,0.32232258,79095.0,79094.0,0.001168]
[1744074989311,0.57518258,79095.0,79094.0,0.001168]
[1744074990361,0.18029088,79095.0,79094.0,0.001168]
[1744074990573,0.02669088,79095.0,79094.0,0.013811]
[1744074990868,0.18033088,79095.0,79094.0,0.001168]
[1744074991067,0.16464,79095.0,79094.0,0.061811]
[1744074991269,0.16464,79095.0,79094.0,0.1911997]
[1744074991473,0.16464,79095.0,79094.0,0.2365997]
[1744074992170,0.011,79095.0,79094.0,0.2365997]
[1744074992371,1.00216,79125.0,79123.0,0.265408]
[1744074992516,0.15364,79124.0,79121.0,0.012638]
[1744074992715,0.15364,79124.0,79123.0,0.012638]
[1744074992968,0.012638,79123.0,79118.0,0.048]
[1744074993189,0.15364,79124.0,79121.0,0.265413]
[1744074993413,0.15364,79124.0,79123.0,0.012638]
[1744074993558,0.15364,79124.0,79120.0,0.012639]
[1744074993757,0.15364,79124.0,79119.0,0.012639]
[1744074994000,0.15964,79124.0,79123.0,0.001]
[1744074994804,0.15964,79124.0,79123.0,0.013638]
[1744074995183,0.15364,79124.0,79123.0,0.012638]
[1744074995629,0.15564,79124.0,79123.0,0.012638]
[1744074996821,0.002,79124.0,79123.0,0.012638]
[1744074997016,0.15564,79124.0,79123.0,0.012638]
[1744074998940,0.16737483,79124.0,79123.0,0.012638]
[1744074999140,0.16737483,79124.0,79122.0,0.252773]
[1744074999341,0.16537483,79124.0,79119.0,0.252783]
[1744074999555,0.16537483,79124.0,79119.0,0.265422]
[1744074999758,0.16537483,79124.0,79121.0,0.265415]
[1744074999996,0.15364,79124.0,79123.0,0.012638]
[1744075000575,0.15364,79124.0,79123.0,0.265409]
[1744075000790,0.16537998,79124.0,79123.0,0.265409]
[1744075002709,9.8e-07,79124.0,79123.0,0.3947977]
[1744075002913,1.8e-07,79127.0,79126.0,0.311899]
[1744075003141,0.1536,79142.0,79141.0,0.311848]
[1744075003359,1.002,79149.0,79148.0,0.265325]
[1744075003965,1.002,79149.0,79148.0,0.012634]
[1744075004099,1.002,79149.0,79142.0,0.265344]
[1744075004304,0.252691,79148.0,79141.0,0.0465]
[1744075004634,1.014634,79149.0,79142.0,0.265345]
[1744075004805,1.014634,79149.0,79143.0,0.012635]
[1744075005007,1.002,79149.0,79142.0,0.25271]
[1744075005208,1.002,79149.0,79145.0,0.012635]
[1744075005659,1.002,79149.0,79148.0,0.012634]
[1744075005886,1.1556,79149.0,79148.0,0.265325]
[1744075006005,1.1586,79149.0,79144.0,0.012635]
[1744075006410,1.1586,79149.0,79145.0,0.265335]
[1744075006651,1.1616,79149.0,79145.0,0.265335]
[1744075006966,1.1586,79149.0,79145.0,0.265335]
[1744075007744,1.423924,79149.0,79144.0,0.012635]
[1744075007951,1.423924,79149.0,79144.0,0.265337]
[1744075008147,1.1586,79149.0,79144.0,0.265337]
[1744075008355,1.1616,79149.0,79145.0,0.012635]
[1744075009335,0.0234284,79148.0,79145.0,0.012635]
[1744075009636,0.012635,79145.0,79134.0,0.0465]
[1744075009836,0.252735,79134.0,79124.0,0.0929]
[1744075010064,0.252754,79129.0,79123.0,0.265409]
[1744075010259,0.1536,79128.0,79124.0,0.265405]
[1744075010458,0.1536,79128.0,79124.0,0.012638]
[1744075010697,0.265399,79126.0,79120.0,0.25278]
[1744075010906,0.0234284,79127.0,79122.0,0.252773]
[1744075011027,0.0234284,79125.0,79122.0,0.265411]
[1744075011231,0.0234284,79125.0,79116.0,0.265432]
[1744075011482,0.012638,79126.0,79117.0,0.012639]